[Event "4NCL Div 2 2024-25"]
[Site "England"]
[Date "2025.01.26"]
[Round "4.28"]
[White "Vaidyanathan, Adithya"]
[Black "Manmay Chopra"]
[Result "1/2-1/2"]
[Annotator "TA"]
[ECO "E90"]
[WhiteElo "1872"]
[BlackElo "2217"]
[PlyCount "127"]
[EventDate "2024.11.23"]
[EventType "team-tourn"]
[EventCountry "ENG"]
[SourceTitle "playchess.com"]
[Source "ChessBase"]
[SourceQuality "1"]
[TimeControl "40/6000+30:3000+30"]

{[%evp 14,127,-14,7,0,0,0,2,8,0,61,-14,-18,-13,0,0,-12,-68,-37,-58,-56,-52,-39,-42,-42,-33,-31,-68,-59,-66,-53,-60,-65,-75,-37,-35,-33,-76,-65,-60,-58,-93,-60,-76,-41,-25,-14,-58,0,0,0,0,0,6,19,37,33,42,32,16,27,35,22,35,34,17,17,10,18,0,0,0,0,0,0,0,0,0,0,0,0,0,0,0,0,0,0,0,0,0,0,0,0,0,0,0,0,0,0,0,0,0,0,0,0,0,0,0,0,0,0,0,0,0,0,0]} 1. d4 {[%emt 0:10:02]} Nf6 {[%emt 0:10:05]} 2. Nf3 {[%emt 0:00:03]} g6 {[%emt 0:00:05]} 3. c4 {[%emt 0:00:04]} Bg7 {[%emt 0:00:03]} 4. Nc3 {[%emt 0:00:04]} d6 {[%emt 0:00:04]} 5. e4 {[%emt 0:00:05]} O-O {[%emt 0:00:04]} 6. h3 {[%emt 0:00:04]} e5 {[%emt 0:01:02]} 7. Be3 {[%emt 0:00:08]} exd4 {[%emt 0:00:09]} 8. Nxd4 {[%emt 0:00:07]} Nc6 {[%emt 0:00:06][%cal Of6e4] E90: King's Indian: Classical: Early deviations and 6 h3.} 9. Bd3 {[%emt 0:00:29]} Re8 {[%emt 0:02:12]} 10. O-O {[%emt 0:00:07]} Nd7 {[%emt 0:03:18]} 11. Bc2 $146 {[%emt 0:18:30]} (11. Nde2 Nc5 12. Bc2 a5 13. Qd2 b6 14. Rad1 Be6 15. Nd5 Nb4 16. Bb1 Nxd5 17. exd5 {½-½ McCarthy,M-Sutton,A (2169) WLS/SRCCC/19/D2 2019 [3]}) 11... Nf8 {[%emt 0:12:49] [#]} (11... Nde5 $11) 12. c5 {[%emt 0:19:54]} Nxd4 {[%emt 0:00:56]} 13. Bxd4 {[%emt 0:00:04]} Bxd4 {[%emt 0:02:56]} 14. Qxd4 {[%emt 0:00:02]} Ne6 {[%emt 0:00:01][%csl LRc5,LRd4]} 15. Qc4 {[%emt 0:02:16]} (15. Qe3 $11) 15... Nxc5 {[%emt 0:01:24]} 16. b4 {[%emt 0:00:55] White sacrificed a pawn} Be6 {[%emt 0:00:18]} 17. Qd4 {[%emt 0:00:33]} Nd7 {[%emt 0:00:12]} 18. Ba4 {[%emt 0:03:11]} Rf8 {[%emt 0:02:12]} 19. f4 {[%emt 0:13:04]} Qf6 {[%emt 0:02:51]} 20. Qe3 {[%emt 0:00:31][%cal Of4f5]} Nb6 {[%emt 0:00:11]} 21. Bc2 {[%emt 0:12:16]} Bc4 {[%emt 0:05:29]} 22. Rf2 {[%emt 0:03:31]} Rfe8 {[%emt 0:02:07][%cal Ob6d5]} 23. Re1 {[%emt 0:03:25]} Nd5 {[%emt 0:04:19]} 24. Nxd5 {[%emt 0:00:23]} Bxd5 {[%emt 0:00:02]} 25. Qd2 {[%emt 0:01:32]} Bc4 {[%emt 0:02:14]} (25... Bxa2 $6 26. Ba4 Bc4 27. Bxe8 Rxe8 28. f5 $11) 26. f5 {[%emt 0:00:38]} g5 {[%emt 0:00:16][%cal Oc7c6]} (26... Bxa2 $2 {loses.} 27. fxg6 (27. Ba4 Bc4 $18) 27... Qxg6 28. e5 $18) (26... Qe5 {looks sharper.} 27. Rc1 c6 28. Qh6 Qg7) 27. a4 {[%emt 0:05:31][%cal Oh3h4]} Kh8 {[%emt 0:02:22]} 28. Rf3 {[%emt 0:01:17]} c6 {[%emt 0:03:03]} (28... d5 $5) 29. Rg3 {[%emt 0:04:43]} Rg8 {[%emt 0:00:14]} 30. Bd3 {[%emt 0:05:46]} Qd4+ {[%emt 0:02:10]} (30... Bxd3 $15 31. Rxd3 Rad8) 31. Qf2 $1 $11 {[%emt 0:00:23]} Qxf2+ {[%emt 0:00:26]} 32. Kxf2 {[%emt 0:00:01]} Bb3 {[%emt 0:04:52]} 33. a5 {[%emt 0:02:08]} f6 {[%emt 0:01:21] [#]} 34. Ba6 $1 {[%emt 0:04:30]} bxa6 {[%emt 0:05:49]} (34... Ba4 35. Bxb7) 35. Rxb3 $14 {[%emt 0:00:04][%mdl 4096] Endgame KRR-KRR. Black is a pawn up.} Rab8 {[%emt 0:00:00]} 36. Rd1 {[%emt 0:00:10]} Rgd8 {[%emt 0:00:09]} 37. Rbd3 {[%emt 0:00:16]} Rxb4 {[%emt 0:06:50]} 38. Rxd6 {[%emt 0:00:05]} Rxd6 {[%emt 0:07:55]} 39. Rxd6 {[%emt 0:00:02]} Rxe4 {[%emt 0:00:06] The position is equal.} 40. Rxc6 {[%emt 0:00:05] KR-KR. Black is a pawn up.} Rf4+ {[%emt 0:00:06]} 41. Kg3 {[%emt 0:50:08]} Rxf5 {[%emt 0:50:07]} 42. Rxa6 {[%emt 0:00:04]} Kg7 {[%emt 0:00:06]} 43. Rxa7+ {[%emt 0:00:05]} Kg6 {[%emt 0:00:02]} 44. Ra8 {[%emt 0:00:30]} Rb5 {[%emt 0:00:10]} 45. a6 {[%emt 0:00:41]} Ra5 {[%emt 0:00:05]} 46. a7 {[%emt 0:00:37] Rg8+ is the strong threat.} Kf5 {[%emt 0:00:15]} 47. Kf3 {[%emt 0:01:23] White wants to mate with g4+.} Ra3+ {[%emt 0:00:02]} 48. Kf2 {[%emt 0:00:16]} h5 {[%emt 0:00:55]} 49. g3 {[%emt 0:01:27]} Ra2+ {[%emt 0:01:16]} 50. Ke3 {[%emt 0:00:55]} Ra6 {[%emt 0:01:34]} 51. Ke2 {[%emt 0:01:58]} Re6+ {[%emt 0:00:34]} 52. Kf2 {[%emt 0:00:05]} Re7 {[%emt 0:05:36]} ({But not} 52... Ra6 $2 53. Ke3 $18) 53. Kf1 {[%emt 0:01:11]} Ke5 {[%emt 0:06:38]} 54. Kf2 {[%emt 0:00:08]} Ke4 {[%emt 0:00:10]} 55. Rf8 {[%emt 0:00:55]} Rxa7 {[%emt 0:00:05] White must now prevent ...Ra2+.} 56. Rxf6 {[%emt 0:00:02]} Ra2+ {[%emt 0:00:08]} 57. Kg1 {[%emt 0:00:01]} Rb2 {[%emt 0:01:17]} 58. g4 {[%emt 0:00:30]} h4 {[%emt 0:05:25]} 59. Rf5 {[%emt 0:00:29]} Rd2 {[%emt 0:00:23]} 60. Rxg5 {[%emt 0:01:30]} Kf4 {[%emt 0:00:12]} 61. Ra5 {[%emt 0:00:26]} Rd1+ {[%emt 0:00:40]} 62. Kf2 {[%emt 0:00:11]} Rd2+ {[%emt 0:00:03]} 63. Kg1 {[%emt 0:00:05]} Rd1+ {[%emt 0:00:13]} 64. Kf2 {[%emt 0:01:54] Weighted Error Value: White=0.09 (flawless) /Black=0.07 (flawless)   Mistake:       	White=2     	Black=2      Inaccurate:     	White=3     	Black=4      OK:         	White=23    	Black=28     Best:        	White=1     	Black=1      Strong:       	White=1     	---} 1/2-1/2

[Event "4NCL Div 2 2024-25"]
[Site "England"]
[Date "2025.01.26"]
[Round "4.29"]
[White "Sivanandan, Bodhana"]
[Black "Paterson, Andrew I"]
[Result "1/2-1/2"]
[Annotator "TA"]
[ECO "B11"]
[WhiteElo "2082"]
[BlackElo "1976"]
[PlyCount "97"]
[EventDate "2024.11.23"]
[EventType "team-tourn"]
[EventCountry "ENG"]
[SourceTitle "playchess.com"]
[Source "ChessBase"]
[SourceQuality "1"]
[TimeControl "40/6000+30:3000+30"]

{[%evp 13,97,5,35,24,48,6,24,0,-1,-4,14,-33,-15,-15,-7,-16,0,-4,0,-6,-4,-3,0,-21,-15,-25,-10,-25,-27,-44,-39,-51,-51,-56,-56,-56,-50,-47,-42,-56,-50,-56,-53,-74,0,-81,56,-110,-49,-47,0,0,0,0,0,0,0,0,0,-6,0,-5,0,-12,0,0,0,0,0,0,0,0,0,0,0,0,0,0,0,0,0,0,0,0,0,0]} 1. e4 {[%emt 0:10:23]} c6 {[%emt 0:10:06]} 2. Nc3 {[%emt 0:00:40]} d5 {[%emt 0:00:08]} 3. Nf3 {[%emt 0:00:36]} Bg4 {[%emt 0:00:13]} 4. h3 {[%emt 0:00:21]} Bxf3 {[%emt 0:00:13]} 5. Qxf3 {[%emt 0:00:04]} Nf6 {[%emt 0:00:12]} 6. Be2 {[%emt 0:00:31]} e6 {[%emt 0:02:37]} 7. d3 {[%emt 0:01:17]} Bb4 {[%emt 0:00:51] [#]} 8. O-O {[%emt 0:00:52] B11: Caro-Kann: Two Knights Variation.} Nbd7 {[%emt 0:00:44]} 9. a3 {[%emt 0:02:11]} Bd6 $146 {[%emt 0:07:11]} (9... Be7 10. d4 dxe4 11. Nxe4 Nxe4 12. Qxe4 Nf6 13. Qd3 O-O 14. Bf3 Qc7 15. Qe2 Rfd8 {1-0 Levin,N-Berezhnoy,V UKR-ch31 Kiev 1962 (10)}) 10. Bf4 {[%emt 0:04:14] White has an edge.} Bxf4 {[%emt 0:00:32]} 11. Qxf4 {[%emt 0:00:13]} O-O {[%emt 0:01:29]} 12. Rad1 {[%emt 0:03:44]} (12. e5 $11 Ne8 13. d4) 12... d4 {[%emt 0:01:15]} 13. Nb1 {[%emt 0:00:36]} c5 {[%emt 0:04:43]} 14. Qg3 {[%emt 0:04:54]} e5 {[%emt 0:22:07]} 15. Nd2 {[%emt 0:05:22]} Qe7 {[%emt 0:01:41]} 16. Rde1 {[%emt 0:03:03]} Rfe8 {[%emt 0:00:50]} 17. f4 {[%emt 0:01:34]} exf4 {[%emt 0:01:35]} 18. Qxf4 {[%emt 0:00:39]} Ne5 {[%emt 0:01:08]} 19. a4 {[%emt 0:02:48]} Rac8 {[%emt 0:02:11]} 20. b3 {[%emt 0:06:18]} Rc6 {[%emt 0:03:12]} 21. Rf2 {[%emt 0:08:13]} Nfd7 {[%emt 0:00:40]} 22. Nf1 {[%emt 0:03:26]} Rf6 {[%emt 0:08:55]} 23. Qh4 {[%emt 0:07:01]} Rxf2 {[%emt 0:02:02]} 24. Qxf2 {[%emt 0:00:10]} Nc6 {[%emt 0:03:07]} 25. Ng3 {[%emt 0:04:36]} g6 {[%emt 0:00:09]} 26. Qf4 {[%emt 0:00:26]} Nde5 {[%emt 0:02:38]} 27. Rf1 {[%emt 0:02:51]} Rd8 {[%emt 0:09:32]} (27... Kg7 {looks sharper.} 28. Bd1 Nb4 29. Ne2 h5) 28. h4 {[%emt 0:01:33]} h5 {[%emt 0:00:42]} (28... Nb4 $17 29. Bd1 Rf8) 29. Bd1 {[%emt 0:07:58]} (29. Bxh5 $1 $11 {keeps the balance.} gxh5 30. Nxh5) 29... Rd6 {[%emt 0:00:13]} (29... Kg7 $17) 30. Ne2 $2 {[%emt 0:00:48]} (30. Bxh5 $1 $14 {was forced to keep a grip.} gxh5 31. Nf5) 30... Kg7 {[%emt 0:00:28]} ({Black should try} 30... Ng4 $17 {[%cal Od6f6] And now ...Rf6! would win.} 31. Qg3 Ne3) 31. Qg3 $15 {[%emt 0:00:27]} Ng4 {[%emt 0:05:05]} (31... Kf8 $15) 32. Nf4 $11 {[%emt 0:02:15] The position is equal.} Ne3 {[%emt 0:00:29] A dynamic duo of knights.} 33. Re1 {[%emt 0:00:42]} (33. Nxh5+ Kh7 34. Nf4 Nxf1 35. Kxf1 Ne5) 33... Nxd1 {[%emt 0:09:38]} 34. Rxd1 {[%emt 0:00:16]} Qe5 {[%emt 0:01:01]} 35. Rf1 {[%emt 0:01:04][%cal Of4h5] [#] Nxh5+! would now be deadly.} Rf6 {[%emt 0:01:45]} 36. Qf2 {[%emt 0:05:18]} Kg8 {[%emt 0:00:53]} 37. g3 {[%emt 0:01:45]} Qd6 {[%emt 0:01:37]} 38. Qe2 {[%emt 0:01:16]} Ne5 {[%emt 0:00:43]} 39. Nd5 {[%emt 0:01:44]} Rxf1+ {[%emt 0:01:33]} 40. Kxf1 {[%emt 0:00:16][%mdl 4096] Endgame KQN-KQN} Kg7 {[%emt 0:04:09]} 41. Kg2 {[%emt 0:53:39]} Qd7 {[%emt 0:22:30]} 42. Qf2 {[%emt 0:00:00]} Ng4 {[%emt 0:02:56] Prevents Qf6+} 43. Qf4 {[%emt 0:00:00]} Qd8 {[%emt 0:02:58]} 44. Qd2 {[%emt 0:00:00]} b6 {[%emt 0:07:11]} 45. Qf4 {[%emt 0:00:00]} Qd7 {[%emt 0:01:24]} 46. Qd2 {[%emt 0:00:00]} Qd8 {[%emt 0:01:29]} 47. Qf4 {[%emt 0:00:00]} Qd7 {[%emt 0:00:08]} 48. Qd2 {[%emt 0:00:00]} Qd8 {[%emt 0:00:26]} 49. Qf4 {[%emt 0:00:00] Weighted Error Value: White=0.17 (very precise) /Black=0.13 (very precise)   Mistake:       	White=3     	Black=4      Inaccurate:     	White=1     	---        OK:         	White=8     	Black=13} 1/2-1/2

[Event "4NCL Div 2 2024-25"]
[Site "England"]
[Date "2025.01.26"]
[Round "4.30"]
[White "Patel, Keatan"]
[Black "Lee, Richard W Y"]
[Result "1-0"]
[Annotator "TA"]
[ECO "E09"]
[WhiteElo "1973"]
[BlackElo "2102"]
[PlyCount "99"]
[EventDate "2024.11.23"]
[EventType "team-tourn"]
[EventCountry "ENG"]
[SourceTitle "playchess.com"]
[Source "ChessBase"]
[SourceQuality "1"]
[TimeControl "40/6000+30:3000+30"]

{[%evp 23,99,25,39,37,35,24,37,38,38,36,24,25,16,27,35,23,23,25,29,5,8,7,18,19,36,18,18,0,0,0,0,0,0,0,0,-33,-35,-37,0,0,0,0,0,-21,-61,-183,-191,-185,-127,-113,0,0,0,0,150,0,685,641,1054,1035,1411,1377,1816,1389,1652,2003,1998,1924,29981,29982,29988,29989,29989,29990,29990,29989,29989,29990]} 1. c4 {[%emt 0:10:34]} e6 {[%emt 0:10:25]} 2. Nf3 {[%emt 0:00:07]} d5 {[%emt 0:00:15]} 3. d4 {[%emt 0:00:11]} Nf6 {[%emt 0:00:22]} 4. g3 {[%emt 0:00:07]} Be7 {[%emt 0:00:19]} 5. Bg2 {[%emt 0:00:13]} O-O {[%emt 0:00:04]} 6. O-O {[%emt 0:00:07]} Nbd7 {[%emt 0:00:52]} 7. Qc2 {[%emt 0:01:25]} c6 {[%emt 0:01:32]} 8. Nbd2 {[%emt 0:01:00]} b6 {[%emt 0:00:34]} 9. e4 {[%emt 0:00:24]} Bb7 {[%emt 0:00:44]} 10. e5 {[%emt 0:00:13]} Ne8 {[%emt 0:00:11]} 11. cxd5 {[%emt 0:00:13]} cxd5 {[%emt 0:00:08]} 12. Re1 {[%emt 0:00:20]} Rc8 {[%emt 0:00:22]} 13. Qd1 {[%emt 0:00:31] E09: Closed Catalan: Main Line: 7 Qc2 c6 8 Nbd2.} Ba6 {[%emt 0:15:59]} 14. Bf1 {[%emt 0:00:57]} Bxf1 {[%emt 0:03:59]} 15. Nxf1 {[%emt 0:02:28] White is slightly better.} Qc7 $146 {[%emt 0:07:14]} (15... b5 16. h4 Nc7 17. Bg5 h6 18. Bxe7 Qxe7 19. Ne3 Rfd8 20. Qd3 a6 {1-0 Zemlyanskii,I (2237)-Martinez Alcantara,J (2597) Titled Tuesday intern op 06th Dec Early blitz 2022 (3)}) 16. h4 {[%emt 0:13:38]} Qc2 {[%emt 0:13:28]} 17. Qxc2 {[%emt 0:00:15]} Rxc2 {[%emt 0:00:32]} 18. Ne3 {[%emt 0:00:16]} Rc8 {[%emt 0:01:53]} 19. Bd2 {[%emt 0:13:15]} g6 {[%emt 0:03:45]} 20. Rac1 {[%emt 0:18:19]} Ng7 {[%emt 0:00:22]} 21. Ng4 {[%emt 0:01:37]} Nf5 {[%emt 0:03:31]} 22. Nh6+ {[%emt 0:02:33]} Kg7 {[%emt 0:09:16]} (22... Nxh6 {simplifies} 23. Bxh6 Rfe8 24. Kf1 b5) 23. Nxf5+ {[%emt 0:01:10]} gxf5 {[%emt 0:02:45]} 24. Rxc8 {[%emt 0:03:47]} Rxc8 {[%emt 0:00:06]} 25. Rc1 {[%emt 0:00:07]} Rxc1+ {[%emt 0:01:16]} 26. Bxc1 $11 {[%emt 0:00:09][%mdl 4096] Endgame KBN-KBN} b5 {[%emt 0:07:54]} 27. Kf1 {[%emt 0:04:07]} Nb8 {[%emt 0:01:07]} 28. Ke2 {[%emt 0:13:02]} Nc6 {[%emt 0:00:42]} 29. Bd2 {[%emt 0:06:09]} Kg6 {[%emt 0:04:15]} 30. Kd3 {[%emt 0:01:06]} Nb4+ {[%emt 0:04:08]} 31. Bxb4 {[%emt 0:02:09]} Bxb4 {[%emt 0:00:04] KB-KN} 32. a3 {[%emt 0:00:08]} Be7 {[%emt 0:00:31][%cal Of5f4]} 33. b4 {[%emt 0:00:47]} Kh5 {[%emt 0:04:30][%cal Of5f4]} 34. Ke2 {[%emt 0:01:43]} (34. Ke3 $15) 34... Kg4 $19 {[%emt 0:02:40]} 35. Nh2+ {[%emt 0:00:24]} Kh3 {[%emt 0:04:55]} 36. Nf1 {[%emt 0:00:05] [#]} f4 {[%emt 0:02:10]} 37. Kf3 $11 {[%emt 0:00:24]} fxg3 {[%emt 0:00:39]} 38. fxg3 {[%emt 0:00:08] aiming for Ne3.} Bf8 {[%emt 0:02:16]} (38... Bd8 $1 $11) 39. Nd2 {[%emt 0:03:02]} (39. Ne3 $16) 39... h5 $2 {[%emt 0:01:50][%mdl 8192] [#]} (39... Bg7 $11) 40. Nb1 $1 $18 {[%emt 0:07:03]} a6 {[%emt 0:02:03]} 41. Nc3 {[%emt 0:50:49]} Be7 {[%emt 0:39:32]} 42. Ne2 {[%emt 0:00:00]} f6 {[%emt 0:00:53]} 43. Nf4+ {[%emt 0:00:00]} Kh2 {[%emt 0:00:02]} 44. Nxh5 {[%emt 0:00:00]} fxe5 {[%emt 0:00:27]} 45. dxe5 {[%emt 0:00:00]} a5 {[%emt 0:05:20]} 46. bxa5 {[%emt 0:00:00] White mates.} Bxa3 {[%emt 0:00:04]} 47. a6 {[%emt 0:00:00]} Bc5 {[%emt 0:00:03]} 48. Nf4 {[%emt 0:00:00]} b4 {[%emt 0:01:01][%cal Bb5b4,Bb4b3][%mdl 32]} 49. Nd3 {[%emt 0:00:00]} (49. Nxe6 b3 50. Nxc5 b2 $11) 49... b3 {[%emt 0:00:28]} 50. h5 {[%emt 0:00:00] Weighted Error Value: White=0.10 (very precise) /Black=0.88  Loses game:     	---       	Black=1      Mistake:       	White=2     	Black=2      Inaccurate:     	White=1     	Black=2      OK:         	White=8     	Black=9      Best:        	White=2     	Black=2      Strong:       	White=1     	---} (50. Nxc5 b2 51. a7 (51. Nxe6 $2 {is the wrong capture.} b1=Q $19) 51... b1=Q $17) 1-0

[Event "4NCL Div 2 2024-25"]
[Site "England"]
[Date "2025.01.26"]
[Round "4.31"]
[White "Starley, Robert"]
[Black "Baer, Bruce L"]
[Result "1/2-1/2"]
[Annotator "TA"]
[ECO "B06"]
[WhiteElo "2036"]
[BlackElo "1962"]
[PlyCount "96"]
[EventDate "2024.11.23"]
[EventType "team-tourn"]
[EventCountry "ENG"]
[SourceTitle "playchess.com"]
[Source "ChessBase"]
[SourceQuality "1"]
[TimeControl "40/6000+30:3000+30"]

{[%evp 9,96,28,37,21,31,31,20,29,22,-47,-42,-33,-27,-122,0,0,0,-21,-28,-62,-64,-75,-20,-15,5,0,0,-104,0,0,0,0,0,0,0,0,0,-32,-27,-40,0,0,31,6,14,0,43,26,58,61,62,58,66,69,140,47,37,-139,-85,-87,-82,-93,-47,-93,0,0,0,0,0,0,0,-154,-169,-168,-118,-111,-64,-70,-68,-69,-31,-73,-65,-54,0,-58,0,-56,0]} 1. e4 {[%emt 0:10:02]} g6 {[%emt 0:10:54]} 2. d4 {[%emt 0:00:07]} Bg7 {[%emt 0:00:04]} 3. Nc3 {[%emt 0:00:05]} a6 {[%emt 0:00:06]} 4. Be3 {[%emt 0:00:09]} d6 {[%emt 0:00:04]} 5. h4 {[%emt 0:00:21]} Nf6 {[%emt 0:00:32]} 6. h5 {[%emt 0:14:12] B06: Modern Defence.} Nxh5 {[%emt 0:00:26]} 7. Rxh5 {[%emt 0:00:16]} gxh5 {[%emt 0:00:02]} 8. Qxh5 {[%emt 0:00:05] The position is equal.} b5 {[%emt 0:09:28]} 9. a3 {[%emt 0:01:36]} (9. Nf3 $11) 9... Nd7 $15 {[%emt 0:04:13][%cal Bb8d7,Bd7f6,Bf6g4][%mdl 32]} 10. e5 {[%emt 0:01:16]} dxe5 $146 {[%emt 0:05:50]} (10... Nf8 11. O-O-O d5 12. f4 c6 13. f5 Qa5 14. Na2 c5 15. dxc5 Bxe5 16. Nf3 Bf6 {1-0 Vijayakumar,R (2156)-Baer,B (1945) British Rapidplay 2024 (5)}) 11. O-O-O {[%emt 0:00:26] [#]} (11. Nf3 $11 exd4 12. Nxd4) 11... e4 $1 {[%emt 0:05:39]} 12. Nxe4 $11 {[%emt 0:02:21] Ng5 is the strong threat.} Nf6 {[%emt 0:01:07]} 13. Qg5 {[%emt 0:04:13] A sharp opening} Kf8 {[%emt 0:01:54]} 14. Nc5 {[%emt 0:01:55]} Qd5 {[%emt 0:08:16]} 15. Qf4 {[%emt 0:02:02]} Be6 {[%emt 0:31:43]} (15... Qa2 $17 16. c3 (16. Qxc7 Bg4 $17) 16... a5) 16. Qxc7 {[%emt 0:03:49]} Rc8 {[%emt 0:03:03]} 17. Qa5 {[%emt 0:00:43]} Ng4 {[%emt 0:02:48]} 18. Qxa6 {[%emt 0:02:40] [#]} (18. Nf3 $11 {remains equal.}) 18... Rxc5 $1 {[%emt 0:05:30]} 19. dxc5 {[%emt 0:02:08]} Bxb2+ $1 {[%emt 0:00:08]} 20. Kxb2 {[%emt 0:00:15]} Qxd1 {[%emt 0:00:03]} 21. Be2 $1 {[%emt 0:04:21] The board is on fire.} Qd5 {[%emt 0:06:59]} (21... Qxg1 $2 22. Bxg4 h6 (22... Bxg4 $2 23. Bh6+ Ke8 24. Qc6+ Kd8 25. Bf4 $18) 23. Bd4 (23. Bxe6 fxe6 24. Qa8+ Kg7 $18) 23... Qxg2 24. f3 $18 (24. Bxh8 Qxg4 25. Qa8+ Bc8 $14) (24. Bxe6 fxe6 25. Bxh8 e5 $18) (24. Qxb5 Qxg4 25. Qb8+ Bc8 $17)) 22. Bxg4 {[%emt 0:01:47]} Bxg4 {[%emt 0:00:05]} 23. Qh6+ {[%emt 0:14:21] White is weak on the light squares} Kg8 $1 {[%emt 0:01:05][%cal Of7f6]} 24. Qh4 {[%emt 0:02:51][%csl LRe7,LRg4]} h5 {[%emt 0:04:20]} (24... Qxg2 $2 25. Qxe7 Qd5 (25... Qxg1 26. Bh6) 26. Ne2 $18) 25. Qxe7 {[%emt 0:00:42]} Kh7 {[%emt 0:05:24][%cal Ob5b4]} 26. Qf6 {[%emt 0:00:08]} Qe6 {[%emt 0:00:42]} 27. Qg5 {[%emt 0:01:09]} Rg8 {[%emt 0:00:29]} (27... Ra8 28. Bd4 Rg8 29. Nh3 Qf5) 28. Qf4 {[%emt 0:00:38][%cal Og1h3]} (28. Nh3 {is more complex.} Rg6 29. f3 Bxf3 30. Bd4) 28... Rg6 {[%emt 0:00:39]} 29. f3 {[%emt 0:00:56]} Rf6 {[%emt 0:00:10]} 30. Qd4 {[%emt 0:01:00]} Bf5 {[%emt 0:00:02][%cal Oe6c4]} 31. Ne2 {[%emt 0:00:44]} Bg6 {[%emt 0:00:49] [#]} (31... Qc4 $1 $14 32. Qxc4 (32. Qxf6 $2 Qxc2+ 33. Ka1 Qb1#) 32... bxc4) 32. Ng3 {[%emt 0:03:49]} ({White should play} 32. Qc3 $1 $16) 32... Qc4 $14 {[%emt 0:02:10]} 33. Qd2 {[%emt 0:01:37] [#]} (33. Qxf6 $2 Qxc2+ 34. Ka1 Qb1#) (33. Qxc4 $14 {stays ahead.} bxc4 34. Nf1) 33... Ra6 {[%emt 0:01:00]} (33... b4 $1 {[%cal Rb4a3]} 34. axb4 (34. Qxb4 $2 Qxc2+ 35. Ka1 Re6 $19) 34... Ra6) 34. Ne4 $17 {[%emt 0:04:27]} Bxe4 {[%emt 0:00:25]} 35. fxe4 {[%emt 0:00:04]} Qxe4 {[%emt 0:00:20][%mdl 4096] Endgame KQR-KQB} (35... Qa4 $17 36. Qd3 b4) 36. Qf2 $15 {[%emt 0:02:11]} Qg6 {[%emt 0:00:48]} (36... Kg6 $17 37. Bd4 h4) 37. Bd4 $11 {[%emt 0:00:39]} Re6 {[%emt 0:00:45]} 38. Bc3 {[%emt 0:00:32][%cal Og2g4]} Re4 {[%emt 0:00:28]} 39. c6 {[%emt 0:05:19]} Rc4 {[%emt 0:00:21]} (39... Qxc6 40. Qxf7+ Kh6 41. Qg7#) 40. c7 {[%emt 0:01:04]} Rxc7 $17 {[%emt 0:00:32]} 41. Qd4 {[%emt 0:51:43]} f6 {[%emt 0:50:12]} (41... Qxg2 $2 42. Qh8+ Kg6 43. Qg8+ Kf5 44. Qxg2 $18) (41... Rxc3 $19 42. Qxc3 Qxg2 43. Qd3+ Qg6 44. Qxb5 h4) 42. Qb6 {[%emt 0:00:49]} Rf7 {[%emt 0:00:00]} ({Black should try} 42... Re7 $17 {...Re2 is the strong threat.} 43. Qxb5 Qxg2 44. Qxh5+ Kg7) 43. Qxb5 $15 {[%emt 0:00:00]} Qg5 {[%emt 0:00:00]} 44. Qc6 {[%emt 0:00:00]} Rg7 {[%emt 0:00:00]} 45. Qf3 {[%emt 0:00:00]} Qb5+ {[%emt 0:00:00]} (45... Qxg2 46. Qxh5+ Kg8 47. Qe8+ Kh7 48. Qh5+ (48. Bxf6 $2 {loses.} Rb7+ 49. Kc1 Qf1+ 50. Kd2 Qf2+ 51. Kd3 Qxf6 $19) 48... Kg8 49. Qe8+ Kh7 50. Qh5+ $11) 46. Kc1 {[%emt 0:00:00]} Qg5+ {[%emt 0:00:00]} (46... Rf7 $5) 47. Kb2 $1 {[%emt 0:00:00]} Qb5+ {[%emt 0:00:00]} ({But not} 47... Qxg2 48. Qxh5+ Kg8 49. Qe8+ Kh7 50. Qh5+ (50. Bxf6 Rb7+ 51. Kc1 Qf1+ 52. Kd2 Qf2+ 53. Kd3 Qxf6 $19) 50... Kg8 51. Qe8+ Kh7 52. Qh5+ $11) 48. Kc1 {[%emt 0:00:00]} Qg5+ {[%emt 0:00:00] Weighted Error Value: White=0.25 (precise) /Black=0.29 (precise)   Mistake:       	White=6     	Black=10     Inaccurate:     	White=3     	Black=5      OK:         	White=10    	Black=14     Best:        	White=6     	Black=2      Strong:       	White=2     	Black=2} (48... Rf7 $15) 1/2-1/2